Cogmind - Beta 16 @@@ ROGUE MODE // 2025.11.01 @ 17:21:28 Player: szymekc Result: Destroyed by S-27 Virus with Autogun Performance ------------- Evolutions (6) 3000 Regions Visited (16) 3200 Robots Destroyed (365) 1825 Value Destroyed (14225) 14225 Prototype IDs (48) 960 Alien Tech Used (0) 0 Bonus (3889) 3889 TOTAL SCORE: 27099 Bonus ------- High Alert Combat Kills 1707 Follower Combat Kills 1117 Entered Garrisons 200 Network Hubs Disabled 200 Registered with UFD 300 Met Optimus in HQ 500 Built Enhanced Grunts 300 Met R17 at Cetus 500 Friendly Fire -935 Cogmind --------- Core Integrity 0/1150 Matter 203/300 Energy 99/100 System Corruption 5% Temperature Cool (0) Movement Core (50) Location -4/Factory Parts ------- > --- POWER (2) -------- (None) > --- PROPULSION (6) --- (None) > --- UTILITY (7) ------ Advanced Visual Processing Unit Improved Target Analyzer Graphene Brace > --- WEAPON (4) ------- (None) > --- INVENTORY (5) ---- Reinforced Fission Core Medium Regenerative Plating EMDS Peak State ------------ > --- POWER ------------ Micro Fission Core Light Antimatter Reactor > --- PROPULSION ------- Centrium Heavy Treads Centrium Heavy Treads Centrium Heavy Treads > --- UTILITY ---------- Advanced Coolant Injector High-capacity Storage Unit Advanced Visual Processing Unit Improved Target Analyzer Improved Transmission Jammer Medium Regenerative Plating Improved Hacking Suite > --- WEAPON ----------- Railgun Railgun Railgun Advanced KE Penetrator > --- INVENTORY -------- Reinforced Fission Core Centrium Heavy Treads Huge Storage Unit Advanced Energy Well YI-UF0's Bottomless Matter Pit Seismic Detector Graphene Brace Experimental EM Shield Long-range Tractor Beam Proton Cannon Proton Cannon Proton Cannon EMDS Neutron Cannon KE Penetrator Precision Rocket Launcher CPS Tube Vortex Trap [Rating: 142] Favorites ----------- Power Enhanced Nuclear Core Engine Heavy Ion Engine Power Core Enhanced Nuclear Core Reactor Quantum Reactor Propulsion Light Treads Treads Light Treads Wheel Armored Huge Wheel Hover Unit Cooled Airjet Flight Unit Improved Cesium-ion Thruster Utility Huge Storage Unit Device Improved Shield Generator Storage Huge Storage Unit Processor Enhanced Optical Array Hackware Improved Hacking Suite Protection Medium Regenerative Plating Weapon Cooled Particle Cannon Energy Gun Gatling Laser Energy Cannon Cooled Particle Cannon Ballistic Gun Advanced KE Penetrator Launcher Missile Launcher Special Weapon CPS Tube Impact Weapon Maul Slashing Weapon Phasing Sabre Special Melee Weapon Improved Datajack Build | -11 -10 -10 -9 -9 -8 -8 -7 -7 -7 -7 -5 -5 -5 -5 -5 -4 ------- Run | Yrd Mat Min Mat Min Mat Gar Fac Sto Rec Scr Fac Ext Cet Arc Hub Fac Slots Evolved 12 | . . . 2 . 2 . 2 . . . 4 . . . . 2 Power 1 | . . . . . . . . . . . 1 . . . . . Propulsion 4 | . . . 1 . 1 . . . . . . . . . . 2 Utility 5 | . . . . . 1 . 1 . . . 3 . . . . . Weapon 2 | . . . 1 . . . 1 . . . . . . . . . Parts Attached 233 | 7 10 4 34 3 35 4 14 30 2 2 30 12 14 4 6 22 Power 23 | 1 2 . 4 1 2 . . 2 . . 4 . 3 1 1 2 Engine 12 | 1 2 . 4 1 2 . . . . . 2 . . . . . Core 5 | . . . . . . . . 2 . . 2 . . . . 1 Reactor 6 | . . . . . . . . . . . . . 3 1 1 1 Propulsion 63 | 2 1 1 16 . 11 3 4 10 2 1 6 1 2 . . 3 Treads 58 | 2 1 1 15 . 11 3 3 7 2 1 6 1 2 . . 3 Leg . | . . . . . . . . . . . . . . . . . Wheel 1 | . . . . . . . 1 . . . . . . . . . Hover 1 | . . . . . . . . 1 . . . . . . . . Flight 3 | . . . 1 . . . . 2 . . . . . . . . Utility 70 | 2 4 1 3 1 8 . 5 6 . 1 12 6 5 2 5 9 Device 32 | 2 . 1 1 . 5 . . 3 . . 7 2 2 2 5 2 Storage 9 | . 4 . 1 1 1 . 1 . . . . . 1 . . . Processor 18 | . . . 1 . 1 . 1 . . 1 5 3 . . . 6 Hackware 4 | . . . . . . . 2 1 . . . . . . . 1 Protection 7 | . . . . . 1 . 1 2 . . . 1 2 . . . Artifact . | . . . . . . . . . . . . . . . . . Weapon 77 | 2 3 2 11 1 14 1 5 12 . . 8 5 4 1 . 8 Energy Gun 7 | . . . 1 . 2 . 1 3 . . . . . . . . Energy Cannon 11 | . . . 1 . . . 1 3 . . 5 . . . . 1 Ballistic Gun 47 | 2 2 2 7 1 9 . 3 4 . . 3 2 4 1 . 7 Ballistic Cannon . | . . . . . . . . . . . . . . . . . Launcher 6 | . . . 1 . 2 1 . 2 . . . . . . . . Special Weapon 3 | . 1 . . . . . . . . . . 2 . . . . Impact Weapon 1 | . . . 1 . . . . . . . . . . . . . Slashing Weapon 1 | . . . . . . . . . . . . 1 . . . . Piercing Weapon . | . . . . . . . . . . . . . . . . . Special Melee Weapon 1 | . . . . . 1 . . . . . . . . . . . Unidentified Prototypes 31 | . . . 4 1 3 . . 12 . . 2 . 7 . 1 1 Corrupted Parts 1 | . . . . . . . . . . . . . . 1 . . System Corruption 3 | . . . . . . . . . . . . . . 3 . . Parts Lost 46 | . . 2 . 1 2 . 4 1 . . 6 . . . 12 18 Power 5 | . . . . . . . . . . . . . . . 3 2 Propulsion 11 | . . 1 . . . . 1 . . . 4 . . . . 5 Utility 15 | . . 1 . . 2 . 1 . . . 2 . . . 6 3 Weapon 15 | . . . . 1 . . 2 1 . . . . . . 3 8 Highest Loss Streak 12 | . . 2 . 1 1 . 4 1 . . 3 . . . 10 12 To Critical Strikes 1 | . . . . . . . . . . . . . . . . 1 Average Backups 21 | . 12 15 19 19 23 25 20 24 25 24 22 22 22 20 20 15 Power . | . 1 2 1 1 1 1 1 1 1 1 1 1 . . . . Propulsion 2 | . 1 4 4 4 4 3 2 4 3 2 2 . 1 3 3 1 Utility 9 | . 3 4 5 6 9 12 10 10 11 12 11 9 9 9 10 6 Weapon 6 | . 5 4 7 8 7 7 4 7 8 6 6 10 8 6 6 5 Tool/Special . | . . . . . . . . . . . . . . . . . Unused Backups 55 | . 1 . 10 2 9 1 1 6 1 1 3 3 5 3 2 7 Power 6 | . . . 2 . . . . 1 . . . . 1 . . 2 Propulsion 7 | . . . 1 . 2 . . 3 . . . . 1 . . . Utility 14 | . . . . 2 3 1 1 1 1 . . 1 . 2 1 1 Weapon 28 | . 1 . 7 . 4 . . 1 . 1 3 2 3 1 1 4 Tool/Special . | . . . . . . . . . . . . . . . . . Average Slot Usage (%) 95 | . 100 99 99 99 99 100 99 97 96 99 99 90 89 88 86 75 Engine 4 | . 14 14 11 11 9 9 7 . . . . 5 1 . . . Core 2 | . . . . . . . . 6 7 7 10 5 . . . 1 Reactor 1 | . . . . . . . . . . . . . 8 11 10 4 Treads 25 | . 28 27 32 33 35 36 29 25 30 30 22 23 13 11 11 14 Device 12 | . 14 13 11 10 10 9 9 11 15 15 15 11 9 11 12 11 Storage 7 | . 13 14 11 11 9 9 7 7 7 7 5 5 5 5 5 6 Processor 7 | . . . . . 4 9 9 7 7 7 13 12 17 17 14 7 Protection 2 | . . . . . 2 . 1 2 . . 4 5 5 5 5 4 Energy Cannon 7 | . . . . . . . . 6 19 22 22 16 . . . 1 Ballistic Gun 17 | . 27 28 32 32 26 23 28 20 6 . . . 23 23 22 17 Impact Weapon 1 | . . . . . . 3 . 1 1 7 . . . . . . Peak Build Rating 142 | 9 9 10 19 23 38 34 53 60 52 50 98 101 135 135 136 142 Average Rating 60 | 6 8 9 16 18 30 33 45 50 49 48 74 92 123 134 132 127 On Entrance 50 | . 9 9 10 18 19 34 34 53 51 35 48 98 99 135 135 75 Avg Prop Armor Cover (%) 12 | . . . . . . . . 10 . . . . . 17 . 17 Naked Turns . | . . . . . . . . . . . . . . . . . Heaviest Build 167 | 10 50 51 59 59 107 104 104 118 118 118 143 149 159 159 159 167 Greatest Support 240 | 40 40 40 60 60 83 83 86 80 83 80 101 111 160 160 160 240 Greatest Overweight (x) 52 | 2 1 1 2 . 1 1 2 3 1 1 2 1 1 52 . 1 Average Overweight (x) 1 | . . . . . . 1 . 1 1 1 1 1 . 16 . . Largest Inventory Capacity 25 | 5 20 20 20 20 25 25 25 25 25 25 25 25 25 25 25 25 Average Capacity 22 | 5 14 19 20 20 23 25 21 24 25 25 25 25 25 25 25 21 Most Carried 25 | 1 15 17 20 20 25 25 24 25 25 25 25 25 25 25 25 20 Average Carried 22 | . 12 15 19 19 23 25 20 24 24 24 23 23 24 24 24 18 Final Capacity 25 | 5 15 20 20 20 25 25 20 25 25 25 25 25 25 25 25 5 Final Carried 25 | 1 15 16 20 20 25 25 20 25 25 25 25 25 25 25 22 4 Class Distribution -------------------- 26% | Scavenger-Tank 19% | Commander-Tank 15% | Scavenger-Gunner 14% | Tank 11% | Mutant 6% | Gunner 4% | Scavenger-Mutant Dominant Class ---------------- Mutant | -10/Materials Mutant | -10/Mines Tank | -9/Materials Tank | -9/Mines Tank | -8/Materials Gunner | -8/Garrison Tank | -7/Factory Commander-Tank | -7/Storage Commander-Tank | -7/Recycling Commander-Tank | -7/Scraptown Scavenger-Gunner | -5/Factory Scavenger-Gunner | -5/Extension Scavenger-Tank | -5/Cetus Scavenger-Tank | -5/Archives Scavenger-Tank | -5/Hub_04(d) Scavenger-Tank | -4/Factory Resources | -11 -10 -10 -9 -9 -8 -8 -7 -7 -7 -7 -5 -5 -5 -5 -5 -4 ----------- Run | Yrd Mat Min Mat Min Mat Gar Fac Sto Rec Scr Fac Ext Cet Arc Hub Fac Matter Collected 14825 | 139 713 308 1554 1334 2659 694 1174 1841 61 90 471 423 445 429 836 1654 Remotely 535 | . . . . . . . . . . . . . . . 123 412 Salvage Created 17370 | 14 650 111 1683 779 2219 847 1086 2152 198 229 1981 907 560 655 1812 1487 Parts 907 | 4 41 6 112 42 126 43 57 96 8 4 84 46 33 45 89 71 Haulers Intercepted 17 | . 2 . 5 . 4 . . 4 . . . . . . . 2 Recyclers Shooed 13 | 1 . . 2 2 3 . . 2 . . 1 2 . . . . Parts Field Recycled . | . . . . . . . . . . . . . . . . . Retrieved Matter . | . . . . . . . . . . . . . . . . . Parts Self-Destructed . | . . . . . . . . . . . . . . . . . Prevented . | . . . . . . . . . . . . . . . . . Parts Restored . | . . . . . . . . . . . . . . . . . Kills | -11 -10 -10 -9 -9 -8 -8 -7 -7 -7 -7 -5 -5 -5 -5 -5 -4 ------- Run | Yrd Mat Min Mat Min Mat Gar Fac Sto Rec Scr Fac Ext Cet Arc Hub Fac Combat Hostiles Destroyed 264 | . 13 2 33 8 33 23 21 27 2 . 31 11 7 3 20 30 Melee 1 | . . . . . . . . . . . . . . . . 1 Guns 194 | . 13 2 31 8 26 19 21 24 . . 1 . 7 3 20 19 Cannons 43 | . . . . . . . . 3 2 . 27 10 . . . 1 AOE 20 | . . . 2 . 7 2 . . . . . . . . . 9 Classes Destroyed 24 | 1 3 1 6 1 3 2 1 . . 1 . 1 . . 1 3 Worker 12 | . . . 3 1 2 . . 2 . . . . . . 2 2 Builder 11 | . . . 1 . 1 . . 1 . . 3 1 . . 2 2 Tunneler 6 | 1 . . . 3 . . 1 . . . . . . . 1 . Hauler 17 | . 2 . 5 . 4 . . 4 . . . . . . . 2 Recycler 19 | . . . 2 5 7 . . 4 1 . . . . . . . Mechanic 2 | . . . . . 1 . 1 . . . . . . . . . Operator 16 | . . . 2 . 4 . . . . . . 1 . 9 . . Watcher 8 | . . . 2 . 1 . . 1 . . 1 . 1 . . 2 Swarmer 50 | . . . 12 3 6 8 3 4 . . 1 2 . . 2 9 Saboteur 1 | . . . . . . . . . . . . . . . . 1 Grunt 102 | . 12 . 13 3 17 8 6 10 . 4 17 3 . . 9 . Brawler 5 | . . . . . 1 3 . 1 . . . . . . . . Duelist 1 | . . . . 1 . . . . . . . . . . . . Protector 1 | . . . . . . . . . . . . . . . . 1 Sentry 46 | . . 2 8 . 8 1 1 9 2 . 4 2 . 3 3 3 Demolisher 1 | . . . . . . . . . . . . . . . 1 . Specialist 5 | . . . . . . . 1 . . . . . . . . 4 Hunter 15 | . . . . . . 2 4 1 . . 2 2 . . . 4 Programmer 21 | . . . . . . 1 6 2 . . 6 . . . . 6 Heavy 3 | . . . . . 1 . . . . . 1 . . . 1 . Behemoth 4 | . . . . . . . . . . . . 2 . . 1 1 Cetus Guard 7 | . . . . . . . . . . . . . 7 . . . Enhanced Grunt 3 | . . . . . . . . . . . . . . . 3 . Lightning 3 | . . . . . . . . . . . . . . . 3 . Striker 1 | . . . . . . . . . . . . . . . . 1 Subdweller 1 | . 1 . . . . . . . . . . . . . . . Scientist 2 | . . . . . . . . . . 2 . . . . . . Savage 1 | . . . . . . . . . . . . 1 . . . . Guerrilla 2 | . . . . . . . . . . . . 2 . . . . Best Kill Streak 12 | 1 3 2 8 4 9 7 9 7 1 . 6 3 4 6 7 12 Combat Bots Only 10 | . 3 2 4 4 7 7 8 5 1 . 6 2 4 2 6 10 Max Kills in Single Turn 7 | 1 1 1 2 2 3 2 1 2 1 2 2 2 2 1 3 7 Gunslinging 1 | . . . 1 1 1 1 . . . . . . . . 1 1 Exploded 6 | . . . 1 . 3 2 . . . . . . . . . 6 Melee 1 | . . . . . . . . . . . . . . . . 1 Uniques/NPCs Destroyed 1 | . . . . 1 . . . . . . . . . . . . YI-UF0 (-9/Mines) Combat | -11 -10 -10 -9 -9 -8 -8 -7 -7 -7 -7 -5 -5 -5 -5 -5 -4 -------- Run | Yrd Mat Min Mat Min Mat Gar Fac Sto Rec Scr Fac Ext Cet Arc Hub Fac Hostile Shots Fired 1801 | . 67 26 120 19 133 81 154 183 27 . 156 14 47 4 329 441 Missed 505 | . 25 3 38 4 40 20 48 67 10 . 43 2 15 . 61 129 Hits 1296 | . 42 23 82 15 93 61 106 116 17 . 113 12 32 4 268 312 Melee 8 | . . . . 1 . 5 . . . . . . . . . 2 Projectile 1288 | . 42 23 82 14 93 56 106 116 17 . 113 12 32 4 268 310 AOE 14 | . . . . 11 . . . . . . . . . . 2 1 Critical Strikes 40 | . . 1 2 . 4 . 4 3 . . 6 . 4 . 7 9 Actively Blocked 7 | . . . . . . . . . . . . . . . 1 6 Part Disruptions 1 | . . . . . . . 1 . . . . . . . . . Damage Taken 18502 | . 567 329 721 336 980 564 1434 1156 88 . 2143 226 836 75 3465 5582 Core 2396 | . 98 62 35 71 123 69 147 100 . . 195 20 53 . 271 1152 Absorbed by Shields 1869 | . . . 207 112 339 224 187 153 44 . 303 104 58 27 111 . Reduced by Siege Mode 441 | . . . . . . . . . . . . . 23 6 140 272 Ignored by Resistances 141 | . . . . . . . . . . . . . . . . 141 Regen/Repaired (Parts) 1095 | . . . . . . . . 220 . . 220 40 . 37 190 388 Core Remaining (%) 64 | 100 . 36 . 73 . 65 . . . 64 . . . . 46 . Volleys Fired 829 | 2 70 7 96 32 103 50 55 78 7 . 76 60 18 21 57 97 Largest 4 | 2 2 2 3 3 3 3 4 4 4 . 4 4 4 4 4 4 Hottest 392 | 40 100 40 69 69 107 86 125 158 115 . 392 392 136 140 140 188 Shots Fired 2446 | 4 138 14 284 96 301 147 184 295 30 . 219 108 73 83 204 266 Gun 2015 | 4 137 14 282 96 297 144 175 274 8 . 7 1 73 83 200 220 Cannon 415 | . . . . . . . 7 21 22 . 212 106 . . 4 43 Launcher 14 | . . . 2 . 4 3 2 . . . . . . . . 3 Special 2 | . 1 . . . . . . . . . . 1 . . . . Kinetic 1999 | 4 137 14 282 96 295 144 171 264 8 . 7 1 73 83 200 220 Thermal 424 | . 1 . . . 2 . 7 31 22 . 212 106 . . 4 39 Explosive 14 | . . . 2 . 4 3 2 . . . . . . . . 3 Electromagnetic 8 | . . . . . . . 4 . . . . . . . . 4 Robot Hit Streak 30 | 2 11 12 15 6 17 8 9 15 6 . 16 16 15 11 30 23 Robot Miss Streak 10 | 1 4 1 5 3 10 5 3 5 2 . 3 2 2 2 5 4 Penetration Max 1 | . . . . . . . . . . . . . 1 1 1 1 Secondary Targets 40 | . 1 . 5 1 6 5 6 5 . . . . 3 . 2 6 Max Gunslinging Chain 2 | . 1 . 1 1 1 2 1 1 . . . . 1 . 1 1 Shots Hit Robots 1491 | 3 89 12 169 55 182 93 115 186 19 6 119 54 55 50 117 167 Core Hits 719 | 1 30 4 71 26 98 38 68 87 6 1 64 27 30 26 67 75 Critical Kills 31 | . . . . 1 1 . 1 1 . . 2 . 2 9 11 3 Critical Parts Destroyed 34 | . . . 1 . 1 . 2 1 . 2 1 . 2 1 9 14 Critical Strikes 77 | . . . 1 1 2 . 3 2 . 2 3 2 4 11 26 20 Meltdown 2 | . . . . . . . . . . . 2 . . . . . Destroy 70 | . . . 1 1 2 . 3 1 . . 1 . 4 11 26 20 Smash 3 | . . . . . . . . 1 . 2 . . . . . . Sever 2 | . . . . . . . . . . . . 2 . . . . Melee Attacks 42 | . . . 1 . 2 18 1 7 . 6 . 7 . . . . Impact 33 | . . . 1 . . 18 1 7 . 6 . . . . . . Slashing 7 | . . . . . . . . . . . . 7 . . . . Piercing . | . . . . . . . . . . . . . . . . . Sneak Attacks 18 | . . . . . 2 2 . 1 . 6 . 7 . . . . Combat Hostiles . | . . . . . . . . . . . . . . . . . Follow-up Attacks . | . . . . . . . . . . . . . . . . . Damage Inflicted 39041 | 32 1177 165 2745 898 3744 2083 2397 3285 577 542 4271 2373 1462 1434 3945 7911 Guns 25769 | 32 1166 158 2599 856 2934 1595 2122 3056 87 . 87 23 1462 1434 3586 4572 Cannons 6642 | . . . . . . . . 163 465 . 3930 1816 . . . 268 Explosions 5063 | . . . 145 . 771 265 271 . . . 219 . . . 359 3033 Melee 1365 | . . . . . . 223 . 66 . 542 . 534 . . . . Ramming 202 | . 11 7 1 42 39 . 4 . 25 . 35 . . . . 38 Kinetic 25503 | 32 1166 158 2599 856 2914 1595 2087 2845 87 . 87 23 1462 1434 3586 4572 Thermal 7012 | . . . . . 20 . . 374 465 . 4149 1816 . . . 188 Explosive 2818 | . . . 145 . 771 265 39 . . . . . . . . 1598 Electromagnetic 706 | . . . . . . . 267 . . . . . . . 359 80 Impact 831 | . . . . . . 223 . 66 . 542 . . . . . . Slashing 534 | . . . . . . . . . . . . 534 . . . . Piercing . | . . . . . . . . . . . . . . . . . Entropic 1435 | . . . . . . . . . . . . . . . . 1435 Highest Corruption 36 | . 3 3 . . . . 4 4 4 . 6 6 6 6 36 5 Average Corruption 3 | . 2 3 . . . . 3 4 4 . 2 6 6 4 5 4 Corruption Purged 9 | . . . . . . . . . . . . . . 9 . . Corruption Blocked . | . . . . . . . . . . . . . . . . . Effects 247 | . 28 24 . . . . 5 38 25 . 31 58 23 7 3 5 Message Errors 63 | . 13 5 . . . . . 8 3 . 6 19 7 1 1 . Matter Fused 51 | . 6 7 . . . . 2 5 4 . 6 13 2 2 1 3 Heat Flow Errors 25 | . 6 4 . . . . 1 3 5 . 2 4 . . . . Energy Discharges 27 | . 1 2 . . . . . 3 6 . 6 3 6 . . . Parts Rejected 3 | . 1 . . . . . . 1 . . . 1 . . . . Parts Fused 5 | . . . . . . . . . 1 . 2 1 1 . . . Data Loss (minor) 28 | . . 4 . . . . 1 7 2 . 3 8 1 2 . . Data Loss (major) 10 | . . . . . . . . 4 1 . 1 . 3 1 . . Misfires 15 | . . 1 . . . . . 5 2 . . 4 2 . . 1 Alerts 4 | . . . . . . . . . 1 . 2 1 . . . . Weapon Failures 16 | . 1 1 . . . . 1 2 . . 3 4 1 1 1 1 Overload Shots 3 | . . . . . . . . 3 . . . . . . . . Overflow Damage 760 | . . . . . 14 73 . 66 . 329 98 29 . . . 151 Projectiles 189 | . . . . . . . . . . 65 82 29 . . . 13 Explosions 150 | . . . . . 14 . . . . . 11 . . . . 125 Melee 421 | . . . . . . 73 . 66 . 264 5 . . . . 13 Knockbacks 10 | . . . . . . . . . . 8 . . . . . 2 Impact 5 | . . . . . . . . . . 4 . . . . . 1 Kinetic . | . . . . . . . . . . . . . . . . . Secondary 5 | . . . . . . . . . . 4 . . . . . 1 Self-Inflicted Damage 298 | . . . . . . . . . . . 46 . . . 94 158 Shots 3 | . . . . . . . . . . . 1 . . . 1 1 Rammed 19 | . 4 2 1 3 6 . 1 . 1 . 1 . . . . . Targets Rammed 21 | . 4 2 1 4 6 . 1 . 1 . 1 . . . . 1 Kicked . | . . . . . . . . . . . . . . . . . Crushed 2 | . . . . 1 . . . . . . . . . . . 1 Highest Temperature 379 | . 260 276 107 78 148 168 204 379 216 . 241 253 36 . 333 341 Average Temperature 69 | . 94 98 21 23 36 50 54 69 98 . 89 92 22 . 92 89 Received Heat Transfer 2976 | . 255 117 211 . 421 132 68 297 26 . 531 44 117 . 214 543 Effects 7 | . . 1 . . . . . 2 . . 4 . . . . . Energy Bleed 2 | . . 1 . . . . . . . . 1 . . . . . Interference 5 | . . . . . . . . 2 . . 3 . . . . . Siege Activations 16 | . . . . . . . . . . . . . 2 3 6 5 Total Turns 292 | . . . . . . . . . . . . . 34 23 96 139 Longest Duration 58 | . . . . . . . . . . . . . 29 11 26 58 Martial Activations . | . . . . . . . . . . . . . . . . . Shielding Activations . | . . . . . . . . . . . . . . . . . Robots Disrupted 1 | . . . . . . . 1 . . . . . . . . . Combat Hostiles 1 | . . . . . . . 1 . . . . . . . . . Robots Corrupted 8 | . . . . . . 2 . . 1 4 . . . . 1 . Combat Hostiles 2 | . . . . . . 2 . . . . . . . . . . Parts Fried 19 | . . . . . . 4 . . 1 3 . 2 . . 8 1 Impact Corruptions 18 | . . . . . . 4 . 1 1 9 1 . . . . 2 Robots Melted 4 | . . . . . . . . . . . 3 1 . . . . Combat Hostiles 4 | . . . . . . . . . . . 3 1 . . . . Parts Melted 33 | . . . . . . . . 1 1 . 23 8 . . . . Heat Transferred 9278 | . . . . . 37 . . 697 629 . 5440 2475 . . . . Parts Sabotaged 1 | . . . . . . . . . . . . . . . . 1 Parts Stolen . | . . . . . . . . . . . . . . . . . Parts Stripped . | . . . . . . . . . . . . . . . . . Power Chain Reactions . | . . . . . . . . . . . . . . . . . Alert | -11 -10 -10 -9 -9 -8 -8 -7 -7 -7 -7 -5 -5 -5 -5 -5 -4 ------- Run | Yrd Mat Min Mat Min Mat Gar Fac Sto Rec Scr Fac Ext Cet Arc Hub Fac Maximum Alert Level 4 | . . . 2 1 2 3 2 3 1 . 2 3 2 1 4 3 Low Security (%) 49 | 100 100 100 20 98 50 34 . . 60 . 60 19 . 87 17 . Level 1 28 | . . . 40 1 44 27 61 24 39 . 23 40 92 12 29 49 Level 2 20 | . . . 38 . 5 35 38 69 . . 16 27 7 . 33 46 Level 3 2 | . . . . . . 2 . 6 . . . 12 . . 7 3 Level 4 . | . . . . . . . . . . . . . . . 12 . Level 5 . | . . . . . . . . . . . . . . . . . High Security . | . . . . . . . . . . . . . . . . . Max Security . | . . . . . . . . . . . . . . . . . Peak Influence 1132 | 5 115 40 552 209 418 747 576 726 286 . 637 844 464 314 1132 829 Initial 504 | . . 35 . 209 . 82 392 245 276 . . 310 464 90 . 504 Average 244 | 1 26 2 360 49 232 346 413 506 197 . 203 378 323 54 496 433 Influence Increases 11009 | 5 417 40 1116 249 1018 665 592 1145 316 . 1271 1115 197 344 1532 987 Destroy 0b10 Robot/C 5900 | . 240 40 660 140 660 460 420 580 80 . 740 500 160 80 560 580 Destroy 0b10 Robot/NC 510 | 5 10 . 75 45 100 . 10 75 5 . 20 25 10 45 40 45 Destroy Leader 1246 | . 64 . 184 30 180 20 80 192 . . 162 64 . . 142 128 Allied During Kill 941 | . . . . 19 . . . 99 34 . 15 361 21 121 271 . Trap Triggered on 0b10 10 | . . . . . 10 . . . . . . . . . . . Successful Hack 208 | . 8 . 19 . 9 44 10 26 42 . 36 14 . . . . Select Force Hacks 210 | . 60 . . . . . . . 150 . . . . . . . Disable Machine 765 | . . . 90 15 30 15 60 150 . . 75 105 . 60 150 15 Anti-Garrison Action 100 | . . . . . . 100 . . . . . . . . . . Destroy Structure 909 | . 5 . 58 . 29 26 12 8 5 . 148 46 6 38 354 174 Lose Combat Pursuer 210 | . 30 . 30 . . . . 15 . . 75 . . . 15 45 Influence Decreases 10180 | 5 326 131 579 785 892 45 799 977 896 128 636 919 801 571 502 1188 Entered New Map 2995 | . . 56 . 328 1 45 355 295 432 128 . 325 367 137 . 526 Time Decay 6005 | 5 326 75 579 387 571 . 404 592 464 . 496 574 294 414 342 482 Lost Part 440 | . . . . 10 20 . 40 10 . . 60 . . . 120 180 Lost Ally 440 | . . . . 60 . . . 80 . . 80 20 140 20 40 . Purge Threat 300 | . . . . . 300 . . . . . . . . . . . Squads Dispatched 50 | . 4 . 4 . 3 . 6 8 . . 7 2 . . 8 8 Investigation 9 | . 2 . 2 . . . . 2 . . 2 1 . . . . Extermination 12 | . . . . . . . 2 4 . . 2 . . . 1 3 Reinforcement 18 | . 2 . 2 . 3 . 1 1 . . 3 1 . . 3 2 Assault 5 | . . . . . . . 3 1 . . . . . . 1 . Garrison 6 | . . . . . . . . . . . . . . . 3 3 Intercept . | . . . . . . . . . . . . . . . . . Searches Triggered . | . . . . . . . . . . . . . . . . . Unchained Authorized 1 | . . . . . . . . . . . . . . . 1 . Construction Impeded 2 | . . . . . . . 1 . . . . . . . 1 . Haulers Reinforced 1 | . . . . . . . . . . . . . . . . 1 Active Scanning Responses . | . . . . . . . . . . . . . . . . . Cargo Convoy Interrupts 2 | . . . . . . . 1 . . . . . . . . 1 Stealth | -11 -10 -10 -9 -9 -8 -8 -7 -7 -7 -7 -5 -5 -5 -5 -5 -4 --------- Run | Yrd Mat Min Mat Min Mat Gar Fac Sto Rec Scr Fac Ext Cet Arc Hub Fac Distress Signals 21 | . 3 . 6 1 3 . 1 3 . . 1 . 1 . 2 . Communications Jammed 54 | . . . . . . . . . . . 3 . . . 9 42 Distress Signals 53 | . . . . . . . . . . . 3 . . . 9 41 Times Spotted 411 | . 26 2 49 9 54 21 34 38 3 . 48 25 9 13 33 47 Peak Tracking Total 19 | . 3 2 6 3 7 4 10 4 1 . 6 7 4 1 6 19 Tactical Retreats 9 | . 1 . 2 . . . . 1 . . 3 . . . 1 1 ID Masks Used 1 | . . . . . . . . . . . . 1 . . . . IFF Responses 410 | . . . . . . . . . . . . 410 . . . . Traps | -11 -10 -10 -9 -9 -8 -8 -7 -7 -7 -7 -5 -5 -5 -5 -5 -4 ------- Run | Yrd Mat Min Mat Min Mat Gar Fac Sto Rec Scr Fac Ext Cet Arc Hub Fac Traps Triggered 20 | . 2 . 5 . 1 3 1 2 . . 2 3 . . . 1 Indirectly . | . . . . . . . . . . . . . . . . . Trap Hack Attempts 18 | . . . . . 18 . . . . . . . . . . . Triggered . | . . . . . . . . . . . . . . . . . Disarmed . | . . . . . . . . . . . . . . . . . Reprogrammed 2 | . 1 . . . 1 . . . . . . . . . . . Reused 1 | . . . . . 1 . . . . . . . . . . . Traps Extracted . | . . . . . . . . . . . . . . . . . Installed 1 | . . . . . . . . . . . . . . . . 1 Triggered 1 | . . . . . 1 . . . . . . . . . . . Most Traps Carried 1 | . . . . . . . . . . 1 1 1 1 1 1 1 Machines | -11 -10 -10 -9 -9 -8 -8 -7 -7 -7 -7 -5 -5 -5 -5 -5 -4 ---------- Run | Yrd Mat Min Mat Min Mat Gar Fac Sto Rec Scr Fac Ext Cet Arc Hub Fac Machines Disabled 53 | . . . 6 1 2 2 4 10 . . 5 8 . 4 10 1 Max in Single Turn 4 | . . . 4 1 1 1 1 1 . . 2 1 . 1 3 1 Garrison Access 2 | . . . . . . . 1 . . . 1 . . . . . Network Hub 1 | . . . . . . . . . . . . . . . 1 . Machines Repaired . | . . . . . . . . . . . . . . . . . Machines Dismantled . | . . . . . . . . . . . . . . . . . Machines Sabotaged . | . . . . . . . . . . . . . . . . . Overloaded Fab Kills . | . . . . . . . . . . . . . . . . . Hacking | -11 -10 -10 -9 -9 -8 -8 -7 -7 -7 -7 -5 -5 -5 -5 -5 -4 --------- Run | Yrd Mat Min Mat Min Mat Gar Fac Sto Rec Scr Fac Ext Cet Arc Hub Fac Machines Accessed 79 | . 8 . 7 . 10 3 2 10 10 4 11 12 . . 1 1 Terminals 53 | . 6 . 6 . 7 3 . 8 5 . 7 11 . . . . Fabricators 1 | . . . . . . . . . . . 1 . . . . . Repair Stations 2 | . . . . . . . . 2 . . . . . . . . Recycling Units 10 | . 2 . . . 1 . . . 5 . 1 1 . . . . Scanalyzers 4 | . . . 1 . 1 . 1 . . . 1 . . . . . Garrison Access 5 | . . . . . 1 . 1 . . . 1 . . . 1 1 Total Hacks 218 | . 23 . 26 . 34 6 6 30 24 15 28 24 . . 1 1 Successful 102 | . 12 . 10 . 15 3 2 13 12 15 14 6 . . . . Failed 114 | . 11 . 15 . 18 3 4 17 12 . 14 18 . . 1 1 Catastrophic 24 | . 1 . 3 . 2 1 . 3 1 . 5 7 . . . 1 Database Lockouts 2 | . . . 1 . 1 . . . . . . . . . . . Manual 91 | . 14 . 19 . 13 3 . 10 15 . 10 6 1 . . . Terminals 146 | . 18 . 23 . 24 6 . 23 13 . 16 23 . . . . Fabricators 1 | . . . . . . . . . . . 1 . . . . . Repair Stations 7 | . . . . . . . . 7 . . . . . . . . Recycling Units 23 | . 5 . . . 1 . . . 11 . 5 1 . . . . Scanalyzers 18 | . . . 3 . 7 . 4 . . . 4 . . . . . Garrison Access 8 | . . . . . 2 . 2 . . . 2 . . . 1 1 Terminal Hacks 43 | . 4 . 3 . 4 3 . 4 2 15 3 5 . . . . Record 8 | . . . . . . . . . . 8 . . . . . . Part Schematic 1 | . . . . . . . . 1 . . . . . . . . Robot Analysis 7 | . . . . . . . . . 1 6 . . . . . . Prototype ID Bank 5 | . . . 2 . 1 . . . 1 . 1 . . . . . Open Door 7 | . . . . . . . . 2 . . . 5 . . . . Branch Access Points 1 | . . . 1 . . . . . . . . . . . . . Emergency Access Points 1 | . . . . . . 1 . . . . . . . . . . Terminal Index 2 | . . . . . 1 . . . . . 1 . . . . . Unreport Threat 2 | . . . . . 2 . . . . . . . . . . . Locate Traps 3 | . 2 . . . . . . 1 . . . . . . . . Reprogram Traps 1 | . 1 . . . . . . . . . . . . . . . Recall Extermination 1 | . . . . . . . . . . . 1 . . . . . Hauler Manifests 1 | . 1 . . . . . . . . . . . . . . . Garrison Registry 1 | . . . . . . 1 . . . . . . . . . . Security Stations 1 | . . . . . . 1 . . . . . . . . . . Proto ID Catalog 1 | . . . . . . . . . . 1 . . . . . . Fabricator Hacks . | . . . . . . . . . . . . . . . . . Repair Station Hacks 3 | . . . . . . . . 3 . . . . . . . . Scan Component 2 | . . . . . . . . 2 . . . . . . . . Repair 1 | . . . . . . . . 1 . . . . . . . . Recycling Unit Hacks 3 | . 1 . . . . . . . 1 . 1 . . . . . Retrieve Components 3 | . 1 . . . . . . . 1 . 1 . . . . . Scanalyzer 10 | . . . 1 . 5 . 1 . . . 3 . . . . . Insert Component 2 | . . . . . . . 1 . . . 1 . . . . . Analyze 1 | . . . . . . . . . . . 1 . . . . . Retrieve Study 7 | . . . 1 . 5 . . . . . 1 . . . . . Garrison Access Hacks 3 | . . . . . 1 . 1 . . . 1 . . . . . Unlock Access 1 | . . . . . 1 . . . . . . . . . . . Seal Access 2 | . . . . . . . 1 . . . 1 . . . . . Unauthorized Hacks 40 | . 7 . 6 . 5 . . 6 9 . 6 1 . . . . Terminals 26 | . 5 . 6 . 5 . . 5 4 . 1 . . . . . Botnet 3 | . . . 1 . . . . 1 . . 1 . . . . . Operators 1 | . . . . . . . . 1 . . . . . . . . Skim 22 | . 5 . 5 . 5 . . 3 4 . . . . . . . Fabricators 1 | . . . . . . . . . . . 1 . . . . . Liberate 1 | . . . . . . . . . . . 1 . . . . . Repair Stations 1 | . . . . . . . . 1 . . . . . . . . Patch 1 | . . . . . . . . 1 . . . . . . . . Recycling Units 12 | . 2 . . . . . . . 5 . 4 1 . . . . Monitor 1 | . . . . . . . . . . . 1 . . . . . Reject 1 | . . . . . . . . . . . 1 . . . . . Recyclers 1 | . . . . . . . . . . . 1 . . . . . Mask 1 | . . . . . . . . . . . 1 . . . . . Tunnel 7 | . 2 . . . . . . . 5 . . . . . . . Fedlink 1 | . . . . . . . . . . . . 1 . . . . Scanalyzers . | . . . . . . . . . . . . . . . . . Garrison Access . | . . . . . . . . . . . . . . . . . Data Cores Recovered 2 | . . . . . 2 . . . . . . . . . . . Used 1 | . . . . . 1 . . . . . . . . . . . Hacking Detections 61 | . 5 . 6 . 9 3 1 8 7 . 10 10 . . 1 1 Full Trace Events 1 | . . . . . . . . . . . 1 . . . . . Feedback Events . | . . . . . . . . . . . . . . . . . Feedback Blocked . | . . . . . . . . . . . . . . . . . Robot Schematics Acquired . | . . . . . . . . . . . . . . . . . Robots Built . | . . . . . . . . . . . . . . . . . Authchips . | . . . . . . . . . . . . . . . . . Time . | . . . . . . . . . . . . . . . . . Total Robot Build Rating . | . . . . . . . . . . . . . . . . . Part Schematics Acquired 2 | . . . . . . . . 1 . . 1 . . . . . Parts Built . | . . . . . . . . . . . . . . . . . Authchips . | . . . . . . . . . . . . . . . . . Time . | . . . . . . . . . . . . . . . . . Total Part Build Rating . | . . . . . . . . . . . . . . . . . Part Studies Acquired 7 | . . . 1 . 5 . . . . . 1 . . . . . Parts Repaired 1 | . . . . . . . . 1 . . . . . . . . Time 38 | . . . . . . . . 38 . . . . . . . . Parts Recycled . | . . . . . . . . . . . . . . . . . Recycled Matter . | . . . . . . . . . . . . . . . . . Retrieved Matter . | . . . . . . . . . . . . . . . . . Retrieved Components 6 | . 3 . . . . . . . 2 . 1 . . . . . Parts Scanalyzed 2 | . . . . . . . 1 . . . 1 . . . . . Part Schematics Acquired 1 | . . . . . . . . . . . 1 . . . . . Parts Damaged 1 | . . . . . . . 1 . . . . . . . . . Bothacking | -11 -10 -10 -9 -9 -8 -8 -7 -7 -7 -7 -5 -5 -5 -5 -5 -4 ------------ Run | Yrd Mat Min Mat Min Mat Gar Fac Sto Rec Scr Fac Ext Cet Arc Hub Fac Used RIF Installer . | . . . . . . . . . . . . . . . . . Robots Hacked 1 | . . . . . 1 . . . . . . . . . . . Non-combat 1 | . . . . . 1 . . . . . . . . . . . Combat . | . . . . . . . . . . . . . . . . . Robot Hacks Applied 2 | . . . . . 2 . . . . . . . . . . . parse_system 2 | . . . . . 2 . . . . . . . . . . . Relay Couplers Released 4 | . . . . . . 4 . . . . . . . . . . Programmers 4 | . . . . . . 4 . . . . . . . . . . Fabnet Peak Effective % . | . . . . . . . . . . . . . . . . . Robots Rewired 4 | . . . . . . . . . . . . 4 . . . . Allies Hacked 1 | . . . . . . . . . . . 1 . . . . . Hacks Repelled . | . . . . . . . . . . . . . . . . . Allies | -11 -10 -10 -9 -9 -8 -8 -7 -7 -7 -7 -5 -5 -5 -5 -5 -4 -------- Run | Yrd Mat Min Mat Min Mat Gar Fac Sto Rec Scr Fac Ext Cet Arc Hub Fac Total Allies 37 | . . . . 3 . . . 10 . . 5 14 5 . . . Largest Group 11 | . . . . 3 . . . 10 6 6 3 11 8 6 5 . Highest-Rated Group 514 | . . . . 40 . . . 173 109 109 98 468 514 514 480 . Highest-Rated Ally 159 | . . . . 16 . . . 29 29 29 49 159 159 96 96 . Initial Warlord ECA Mod 3 | . . . . . . . 3 3 3 3 . . . . . . Total Orders 10 | . . . . . . . . . . 2 . . . 2 6 . STAY 6 | . . . . . . . . . . 1 . . . 1 4 . FOLLOW 4 | . . . . . . . . . . 1 . . . 1 2 . Ally Attacks 272 | . . . . 11 . . . 53 10 . 35 80 18 3 62 . Total Damage 6240 | . . . . 78 . . . 711 129 . 714 1987 361 133 2127 . Kills 44 | . . . . . . . . 3 2 . 6 19 2 1 11 . Allies Corrupted 5 | . . . . . . . . . . 2 . . . . 3 . Allies Melted . | . . . . . . . . . . . . . . . . . Intel | -11 -10 -10 -9 -9 -8 -8 -7 -7 -7 -7 -5 -5 -5 -5 -5 -4 ------- Run | Yrd Mat Min Mat Min Mat Gar Fac Sto Rec Scr Fac Ext Cet Arc Hub Fac Active Infowar (turns) 20575 | 30 1852 1165 137 . 418 . 966 1864 1165 3691 2045 1757 651 2904 792 1138 Optics 16552 | . . . . . . . 966 1864 1165 3691 2045 1757 651 2904 567 942 Terrain 58 | 24 34 . . . . . . . . . . . . . . . Seismic 4949 | 30 1852 1165 137 . 418 . . . . . 269 10 . . 143 925 T.N.C. 505 | . . . . . . . . . . . . . . . . 505 Machine Analysis 252 | . . . . . . . . . . . 252 . . . . . Jamming 1483 | . . . . . . . . . . . 792 . . . 426 265 ID Mask 245 | . . . . . . . . . . . . 245 . . . . Robot Analysis Total 7 | . . . . . . . . . 1 6 . . . . . . Derelict Logs Recovered 4 | . . 2 . 2 . . . . . . . . . . . . Drone Launches . | . . . . . . . . . . . . . . . . . Drone Recoveries . | . . . . . . . . . . . . . . . . . Exploration | -11 -10 -10 -9 -9 -8 -8 -7 -7 -7 -7 -5 -5 -5 -5 -5 -4 ------------- Run | Yrd Mat Min Mat Min Mat Gar Fac Sto Rec Scr Fac Ext Cet Arc Hub Fac Turns Passed 27072 | 59 1852 1219 1840 1519 2145 1319 967 1864 1165 3691 2045 1757 651 2904 828 1247 Spaces Moved 10673 | 29 834 536 818 876 779 545 468 783 525 1737 806 595 216 295 349 482 Core 110 | 7 . . . . . . . . . . . . . 91 . 12 Treads 10317 | 22 834 536 818 876 779 545 466 539 525 1737 806 595 216 204 349 470 Legs . | . . . . . . . . . . . . . . . . . Wheels 246 | . . . . . . . 2 244 . . . . . . . . Hover . | . . . . . . . . . . . . . . . . . Flight . | . . . . . . . . . . . . . . . . . Fastest Speed 50 | 50 160 160 160 160 156 200 130 130 212 200 200 237 160 160 160 50 Average Speed 209 | 147 178 219 160 160 184 200 169 189 212 202 204 240 177 928 160 160 Slowest Speed 2650 | 160 240 240 320 160 200 200 200 212 212 212 285 247 247 2650 160 240 Overloaded Moves . | . . . . . . . . . . . . . . . . . Propulsion Burnouts . | . . . . . . . . . . . . . . . . . Robots Hopped . | . . . . . . . . . . . . . . . . . Potential Cave-ins 3 | . . . . . . . . . . . . . . . . 3 Cave-ins Triggered . | . . . . . . . . . . . . . . . . . Exploration Rate (%) 66 | 3 98 97 78 91 86 67 18 89 94 90 36 83 60 94 39 10 Regions Visited 16 Branch Regions 9 Pre-discovered Areas 16 | . 2 . 3 2 3 . . 1 5 . . . . . . . Known Exits Taken 7 | . . . 1 1 1 . 1 . 1 1 . . . . 1 . Unknown Exits Taken 8 | 1 1 1 . . . . . 1 . . 1 1 1 1 . . Scrap Searched 8 | . . 2 . 1 . . . . . 5 . . . . . . Spaces Dug 57 | . 1 . . . 10 6 4 . . . 13 . . . 4 19 Terrain Destroyed 622 | . 1 . 78 . 33 11 22 3 6 . 75 11 3 27 240 112 Melee 6 | . . . . . . 6 . . . . . . . . . . Projectile 269 | . 1 . . . . . 7 3 6 . 55 11 3 27 72 84 AOE 346 | . . . 78 . 33 5 15 . . . 20 . . . 168 27 Terrain Rammed . | . . . . . . . . . . . . . . . . . Walls Destroyed . | . . . . . . . . . . . . . . . . . Machines Disabled . | . . . . . . . . . . . . . . . . . Actions | -11 -10 -10 -9 -9 -8 -8 -7 -7 -7 -7 -5 -5 -5 -5 -5 -4 --------- Run | Yrd Mat Min Mat Min Mat Gar Fac Sto Rec Scr Fac Ext Cet Arc Hub Fac Total 13829 | 38 1057 562 1171 939 1335 656 577 1049 563 1896 1064 815 447 410 497 753 Wait 1370 | . 110 2 141 15 316 17 6 61 23 136 97 44 164 76 62 100 Move 10656 | 28 833 535 817 875 779 542 467 782 524 1736 805 594 215 294 348 482 Hop . | . . . . . . . . . . . . . . . . . Pick Up 198 | 1 19 6 22 3 31 4 9 28 . 7 25 7 9 6 5 16 Fast Attach 73 | 7 2 . 12 1 7 . 4 15 . 1 3 3 10 1 1 6 Attach 54 | . . 2 3 1 3 . 5 4 . 3 7 8 . . 3 15 Detach 29 | . 1 . 3 1 . . 1 2 3 1 . 10 2 1 . 4 Swap 265 | . 10 4 34 4 36 15 17 37 3 2 31 21 6 5 16 24 Drop 215 | . 8 4 41 3 34 6 11 35 2 4 19 7 23 6 5 7 Fire 829 | 2 70 7 96 32 103 50 55 78 7 . 76 60 18 21 57 97 Melee 42 | . . . 1 . 2 18 1 7 . 6 . 7 . . . . Ram . | . . . . . . . . . . . . . . . . . Kick . | . . . . . . . . . . . . . . . . . Crush 21 | . 4 2 1 4 6 . 1 . 1 . 1 . . . . 1 Escape Stasis 12 | . . . . . . 4 . . . . . 8 . . . . Rewire 46 | . . . . . . . . . . . . 46 . . . . Trap 19 | . . . . . 18 . . . . . . . . . . 1 Miscellaneous . | . . . . . . . . . . . . . . . . . Route ------- -11/Scrapyard -10/Materials (discovered 5 exits: *Mat x3 / [*Min] / *Sub) -10/Mines (discovered 3 exits: *Mat x2 / Sub) -9/Materials (discovered 4 exits: *Mat x3 / *Min) -9/Mines (discovered 2 exits: *Mat x2) -8/Materials (discovered 4 exits: *Fac x3 / Gar) -8/Garrison (discovered 3 exits: *Fac x3) -7/Factory (discovered 2 exits: Fac / *Sto) -7/Storage (discovered 2 exits: *Fac / *Rec) -7/Recycling (discovered 2 exits: *Fac / *Scr) -7/Scraptown (discovered 2 exits: *Fac x2) -5/Factory (discovered 4 exits: *Fac x2 / *Upp / *Ext) -5/Extension (discovered 3 exits: *Fac x2 / *Cet) -5/Cetus (discovered 2 exits: *Fac / [*Arc]) -5/Archives (discovered 3 exits: *Fac / *Hub x2) -5/Hub_04(d) -4/Factory (discovered 2 exits: [*Res] / [*Upp]) History --------- Turn | Location | Event 10 | -11/Scrapyard | Discovered new exit (range 15) 60 | -11/Scrapyard | Entered Materials 302 | -10/Materials | Build established: Mutant 423 | -10/Materials | Discovered new exit (range 16) 560 | -10/Materials | Derelicts attacked the area 645 | -10/Materials | Discovered new exit (range 14) 848 | -10/Materials | Discovered new exit (range 10) 1299 | -10/Materials | Discovered new exit (range 8) 1639 | -10/Materials | Discovered new exit (range 16) 1912 | -10/Materials | Entered Mines 2112 | -10/Mines | Identified exit to Subcaves 2195 | -10/Mines | Discovered new exit (range 14) 2356 | -10/Mines | Discovered new exit (range 15) 2447 | -10/Mines | Learned Materials emergency access door positions 2554 | -10/Mines | Core integrity fell below 50% 2859 | -10/Mines | Build established: Scavenger-Mutant 2872 | -10/Mines | Deemed a non-threat by the Exiles lab entrance 3131 | -10/Mines | Entered Materials 3131 | -9/Materials | Evolved 2 slots: Propulsion x1, Weapon x1 3145 | -9/Materials | Central database locked down 3559 | -9/Materials | Build established: Scavenger-Tank 3636 | -9/Materials | Discovered new exit (range 16) 4246 | -9/Materials | Build established: Tank 4401 | -9/Materials | Discovered new exit (range 3) 4462 | -9/Materials | Identified exit to Materials 4512 | -9/Materials | Identified exit to Mines 4653 | -9/Materials | Learned location of Recycling (-7) 4750 | -9/Materials | Learned location of 1 exit from Recycling 4785 | -9/Materials | Learned location of Zion (-6) 4810 | -9/Materials | Learned location of 1 exit from Recycling 4890 | -9/Materials | Loaded intel: 2 recycling unit locations 4971 | -9/Materials | Entered Mines 4972 | -9/Mines | Assembled infested the area 5025 | -9/Mines | YI-UF0 nonchalantly dropped a Grenade Launcher on the ground 5041 | -9/Mines | Destroyed YI-UF0 5067 | -9/Mines | Found Prototype Storage 5067 | -9/Mines | Identified YI-UF0's Bottomless Matter Pit 5684 | -9/Mines | Discovered exit to Materials (range 5) 5686 | -9/Mines | Assisted by bots powering up and referring to "LRC-V3" 5706 | -9/Mines | Discovered exit to Materials (range 12) 5937 | -9/Mines | Lost 3 allies 6205 | -9/Mines | Learned location of Storage (-7) 6490 | -9/Mines | Entered Materials 6490 | -8/Materials | Evolved 2 slots: Propulsion x1, Utility x1 6491 | -8/Materials | Identified exit to Factory 6726 | -8/Materials | Destroyed 7 combat bots 7506 | -8/Materials | Discovered exit to Factory (range 15) 7798 | -8/Materials | Build established: Scavenger-Gunner 8203 | -8/Materials | Central database locked down 8352 | -8/Materials | Build established: Gunner 8373 | -8/Materials | Learned 8 Factory zone layouts 8410 | -8/Materials | Learned 2 Lower Caves zone layouts 8438 | -8/Materials | Learned location of 1 exit from Extension 8486 | -8/Materials | Learned Factory garrison access intel 8574 | -8/Materials | Learned Factory repair station intel 8635 | -8/Materials | Identified exit to Garrison 8635 | -8/Materials | Entered Garrison 8687 | -8/Garrison | Triggered checkpoint 9086 | -8/Garrison | Triggered checkpoint 9263 | -8/Garrison | Discovered exit to Factory (range 50) 9263 | -8/Garrison | Discovered exit to Factory (range 20) 9263 | -8/Garrison | Discovered exit to Factory (range 74) 9323 | -8/Garrison | Attempted to access garrison exit controls, blocked by remote lockdown 9421 | -8/Garrison | Triggered checkpoint 9453 | -8/Garrison | Triggered checkpoint 9524 | -8/Garrison | Destroyed 7 combat bots 9686 | -8/Garrison | Learned Factory security intel 9708 | -8/Garrison | Attempted to access garrison exit controls, blocked by remote lockdown 9954 | -8/Garrison | Entered Factory 9954 | -7/Factory | Evolved 2 slots: Utility x1, Weapon x1 9955 | -7/Factory | Identified exit to Factory 9955 | -7/Factory | Identified exit to Storage 9957 | -7/Factory | Loaded intel: 6 repair station locations 9958 | -7/Factory | Loaded intel: 4 garrison access locations 10707 | -7/Factory | Cargo convoy interrupted 10754 | -7/Factory | First assault squad dispatched 10766 | -7/Factory | Build established: Tank 10779 | -7/Factory | Destroyed 8 combat bots 10787 | -7/Factory | Lost 4 parts (1n1u2w) 10921 | -7/Factory | Entered Storage 10986 | -7/Storage | Repaired Broken Enh. Autogun 11338 | -7/Storage | Used back door to open Recycling access 11338 | -7/Storage | Discovered new exit (range 5) 11478 | -7/Storage | Found Prototype Launcher 11478 | -7/Storage | Identified Rocket Array 11490 | -7/Storage | Found Rocket Array 11695 | -7/Storage | Build established: Scavenger-Tank 11721 | -7/Storage | First assault squad dispatched 11938 | -7/Storage | Learned location of Armory (-3) 12016 | -7/Storage | Assisted by bots powering up and referring to "LRC-V3" 12193 | -7/Storage | Found Prototype Protection 12193 | -7/Storage | Identified Lgt. Regenerative Plating 12339 | -7/Storage | Build established: Commander-Tank 12387 | -7/Storage | Discovered exit to Factory (range 16) 12645 | -7/Storage | Found Rocket Array 12649 | -7/Storage | Found Rocket Array 12785 | -7/Storage | Entered Recycling 12785 | -7/Recycling | Accompanied by 6 allies 12786 | -7/Recycling | Identified exit to Factory 12786 | -7/Recycling | Identified exit to Scraptown 13880 | -7/Recycling | Scanned before Scraplab entrance 13910 | -7/Recycling | Entered Scraplab 13950 | -7/Recycling | Entered Scraptown 13950 | -7/Scraptown | Accompanied by 6 allies 13950 | -7/Scraptown | System corruption cleaned by C-Scrubber 14251 | -7/Scraptown | Visited UFD Registry 14251 | -7/Scraptown | Registered with UFD as "Matrixhead" 14281 | -7/Scraptown | Visited Cyclists 14298 | -7/Scraptown | Entered Cyclist Reading Room 14349 | -7/Scraptown | Visited Comm Corps 14380 | -7/Scraptown | Visited SPCMW 14393 | -7/Scraptown | Visited Assassins FH 14410 | -7/Scraptown | Visited CPS Storage 14438 | -7/Scraptown | Visited Red Mages 14758 | -7/Scraptown | Discovered exit to Factory (range 11) 15121 | -7/Scraptown | Visited Curators Association 15255 | -7/Scraptown | Visited LU-1G1's Boring Crew 15285 | -7/Scraptown | Visited DA-N13 Charitable Foundation 15303 | -7/Scraptown | Found DCF Scrap (31 items) 15437 | -7/Scraptown | Discovered exit to Factory (range 3) 15687 | -7/Scraptown | Received an X-ray algorithm 15914 | -7/Scraptown | Visited Junk Repository 15986 | -7/Scraptown | Visited Research Penetration Think Tank 16024 | -7/Scraptown | Visited Chapter 10 16072 | -7/Scraptown | Visited Analyses Database 16120 | -7/Scraptown | Visited Science Guys 16190 | -7/Scraptown | Visited Derelict Rescue Squad 16377 | -7/Scraptown | Found Unknown Processor 17538 | -7/Scraptown | Met Optimus 17538 | -7/Scraptown | Accepted into 0bPrime 17625 | -7/Scraptown | Build established: Scavenger-Tank 17641 | -7/Scraptown | Entered Factory 17641 | -5/Factory | Accompanied by 2 allies 17641 | -5/Factory | Evolved 4 slots: Power x1, Utility x3 17934 | -5/Factory | Build established: Scavenger-Gunner 18346 | -5/Factory | Discovered new exit (range 7) 18359 | -5/Factory | Identified exit to Factory 18851 | -5/Factory | Discovered exit to Factory (range 13) 19076 | -5/Factory | Lost 3 parts (2n1u) 19410 | -5/Factory | Discovered new exit (range 4) 19420 | -5/Factory | Identified exit to Upper Caves 19553 | -5/Factory | Discovered new exit (range 19) 19612 | -5/Factory | Lost 3 parts (2n1u) 19674 | -5/Factory | Spotted B-75 Beast 19686 | -5/Factory | Entered Extension 19862 | -5/Extension | Identified ID Mask 19862 | -5/Extension | ID Mask engaged 20044 | -5/Extension | Build established: Scavenger-Mutant 20107 | -5/Extension | ID Mask no longer valid 20116 | -5/Extension | Rescued A7 20121 | -5/Extension | Attached CPS modules to A7. 20316 | -5/Extension | Rescued a captive Derelict 20355 | -5/Extension | Rescued a captive Derelict 20461 | -5/Extension | Rescued a captive Derelict 20462 | -5/Extension | Rescued a captive Derelict 20685 | -5/Extension | Spotted B-75 Beast 20697 | -5/Extension | Destroyed B-75 Beast 20707 | -5/Extension | Spotted B-75 Beast 20727 | -5/Extension | Destroyed B-75 Beast 20770 | -5/Extension | Build established: Scavenger-Gunner 20882 | -5/Extension | Rescued a captive Derelict 20930 | -5/Extension | Rescued a captive Derelict 20996 | -5/Extension | Rescued a captive Derelict 21088 | -5/Extension | Rescued a captive Derelict 21090 | -5/Extension | Rescued a captive Derelict 21130 | -5/Extension | Rescued a captive Derelict 21179 | -5/Extension | Loaded intel: 1 recycling unit location 21370 | -5/Extension | Discovered exit to Factory (range 10) 21372 | -5/Extension | Discovered new exit (range 6) 21443 | -5/Extension | Entered Cetus 21443 | -5/Cetus | Accompanied by 8 allies (A7) 21448 | -5/Cetus | Acquired a Cetus Manufacturing Module code from A7 21463 | -5/Cetus | Murdered 3 allies 21466 | -5/Cetus | Spotted Cetus Guard 21467 | -5/Cetus | Spotted Cetus Guard 21471 | -5/Cetus | Spotted Cetus Guard 21472 | -5/Cetus | Spotted Cetus Guard 21478 | -5/Cetus | Allies destroyed Cetus Guard 21486 | -5/Cetus | Destroyed Cetus Guard 21503 | -5/Cetus | Destroyed Cetus Guard 21509 | -5/Cetus | Destroyed Cetus Guard 21513 | -5/Cetus | Extracted ID and sensor layout for unrecognized location from A7's data core 21518 | -5/Cetus | Lost 7 allies 21523 | -5/Cetus | Found Prototype Protection 21523 | -5/Cetus | Identified Med. Regenerative Plating 21689 | -5/Cetus | Discovered new exit (range 21) 21722 | -5/Cetus | Spotted Cetus Guard 21722 | -5/Cetus | Spotted Cetus Guard 21722 | -5/Cetus | Spotted Cetus Guard 21722 | -5/Cetus | Spotted Cetus Guard 21745 | -5/Cetus | Discovered exit to Factory (range 22) 21758 | -5/Cetus | Destroyed Cetus Guard 21758 | -5/Cetus | Destroyed Cetus Guard 21772 | -5/Cetus | Destroyed Cetus Guard 21779 | -5/Cetus | Destroyed Cetus Guard 21808 | -5/Cetus | Met Revision 17 21856 | -5/Cetus | Build established: Scavenger-Tank 21912 | -5/Cetus | Started Cetus Manufacturing Module 21937 | -5/Cetus | Manufactured an Enhanced Grunt 21962 | -5/Cetus | Manufactured an Enhanced Grunt 21987 | -5/Cetus | Manufactured an Enhanced Grunt 22012 | -5/Cetus | Manufactured an Enhanced Grunt 22037 | -5/Cetus | Manufactured an Enhanced Grunt 22094 | -5/Cetus | Entered Archives 22094 | -5/Archives | Accompanied by 6 allies 22248 | -5/Archives | Discovered new exit (range 22) 22254 | -5/Archives | Discovered new exit (range 22) 22304 | -5/Archives | Discovered exit to Factory (range 20) 24998 | -5/Archives | Entered Hub_04(d) 24998 | -5/Hub_04(d) | Accompanied by 5 allies 25042 | -5/Hub_04(d) | Discovered exit to Factory (range 9) 25113 | -5/Hub_04(d) | Spotted B-75 Beast 25148 | -5/Hub_04(d) | Destroyed B-75 Beast 25322 | -5/Hub_04(d) | Garrison activated, responded to threat 25511 | -5/Hub_04(d) | Unchained authorized (DW-4LL) 25598 | -5/Hub_04(d) | First assault squad dispatched 25657 | -5/Hub_04(d) | Network Hub disabled 25681 | -5/Hub_04(d) | Spotted Lightning 25684 | -5/Hub_04(d) | Destroyed Lightning 25687 | -5/Hub_04(d) | Destroyed Lightning 25693 | -5/Hub_04(d) | Spotted Lightning 25698 | -5/Hub_04(d) | Destroyed Lightning 25721 | -5/Hub_04(d) | Lost 3 allies 25732 | -5/Hub_04(d) | Found Prototype Device 25732 | -5/Hub_04(d) | Identified Exp. EM Shield 25743 | -5/Hub_04(d) | Found Prototype Energy Cannon 25792 | -5/Hub_04(d) | DW-4LL burst out of a wall 25799 | -5/Hub_04(d) | System corruption reached 10% 25817 | -5/Hub_04(d) | Core integrity fell below 50% 25818 | -5/Hub_04(d) | System corruption reached 30% 25826 | -5/Hub_04(d) | Entered Factory 25826 | -4/Factory | Evolved 2 slots: Propulsion x2 25853 | -4/Factory | Lost 10 parts (2p5u3w) 25971 | -4/Factory | Spotted B-86 Titan 26079 | -4/Factory | Found Prototype Processor 26079 | -4/Factory | Identified Exp. Signal Interpreter 26472 | -4/Factory | Destroyed B-86 Titan 26740 | -4/Factory | Garrison activated, responded to threat 26801 | -4/Factory | Discovered new exit (range 10) 27043 | -4/Factory | Discovered new exit (range 12) 27052 | -4/Factory | Spotted Striker 27053 | -4/Factory | Cargo convoy interrupted 27068 | -4/Factory | Core integrity fell below 50% 27071 | -4/Factory | Core integrity fell below 20% 27071 | -4/Factory | Destroyed Striker 27073 | -4/Factory | Destroyed by S-27 Virus with Autogun Last Messages --------------- 27070_ U-05 Engineer lays Concrete. 27070_ Penetrated by Slug. 27070_ Recycling Unit disabled. 27070_ Unknown Device tumbles out of recycling unit. 27071_ U-05 Engineer builds a Wall. 27071_ Triggered Vortex Trap. 27071_ A wave of accelerated entropy washes over the area. 27071_ Striker destroyed. 27071_ Destroyed Imp. Targeting Computer. 27071_ H-77 Assassin destroyed. 27071_ Destroyed Point Defense System. 27071_ I-47 Archangel destroyed. 27071_ H-77 Assassin destroyed. 27071_ Destroyed Welding Torch. 27071_ U-05 Engineer destroyed. 27071_ X-77 Beamer destroyed. 27071_ Destroyed Tesla Rifle. 27071_ Destroyed Antigrav System. 27071_ X-82 Rainmaker destroyed. 27073_ The unstable cave ceiling collapses. Map ----- +----------------------------------------------------+ | ??????# ^ ###### #???????????????????? | | ??????# #???????????????????? | | ??????# ######+#####???????????????? | | ??????########### ## #???????????????? | | ????????????????######## #???????????????? | | ???????????????????????# #???????????????? | | ???????????????????????# #???????????????? | | ???????????????#####??#######"#####??????????????? | | ???????????????# ?# """ """ #??????????????? | | ???????????????# !!! ?# """ """ #??????????????? | | ???????????????? !!! ?# """ """ #??????????????? | | ????????????????? !! # #??????????????? | | ?????????????????? # #??????????????? | | ??????????????????? # #??????????????? | | ???????????????????? # #??????????????? | | ????????????????????? # #??????????????? | | ?????????????????????? ##;A#######??????????????? | | ????????????##????##+###;|! ############### ???? | | ???????????## ###[ = *]] ???? | | ????? < %=[%[s! ! "??? | | ????????# ### ### gg!%[ ???? | | ??????????????????## !!s %;;;#########????? | | ??????????????????## %! % ; #???????? | | ???????????????????# = % # #???????? | | ???????????????????#=% [ "" #???????? | | ???????????????????#]*= @ % "Y = #???????? | | ??????????????????+%g= = p " #???????? | | ??????????????????##== *! %! ; !#???????? | | ??????????????H????# u;####+###???????? | | ???????????????????# u u ?? ?????????? | | ???????????????????# #### ####???????????? | | ???????????????????# ? / /#??????????????? | | ??????????????????+ ? ! #??????????????? | | ??????????????????## ? "" #??????????????? | | ???????????????????# ? "" """" #??????????????? | | ???????????????????# # "T """" #??????????????? | | ???????????????????# # "" """" #??????????????? | | ???????????????????# # ?" """? #??????????????? | | ???????????????????# ? ? ??? #??????????????? | | ???????????????????# ?????##+???##??????????????? | | ???????????????????# ????????????????????????????? | | ???????????????????# ????????????????????????????? | | ???????????????????# ????????????????????????????? | | ?????????????????????????????????????????????????? | | ?????????????????????????????????????????????????? | | ?????????????????????????????????????????????????? | | ?????????????????????????????????????????????????? | | ?????????????????????????????????????????????????? | | ?????????????????????????????????????????????????? | | ?????????????????????????????????????????????????? | +----------------------------------------------------+ Best States ------------- Heat Dissipation 71 Coolant Potential 100 Energy Generation 45 Energy Capacity 600 Matter Stores 300 Matter Capacity 300 Sight Range 22 Terrain Scan Range 16 Terrain Scan Density 10 Jamming Range 14 Additional Mass Support 16 Armor Coverage 600 Resistance: EM 75 Weapon Cycling 20 Evasion (%) 40 Targeting Accuracy 8 Target Analysis 6 Core Analysis 6 Recoil Reduction 6 Salvage Targeting 2 Offensive Hacking 12 Defensive Hacking 10 Item Schematics ----------------- Hyp. Gauss Rifle | -7/Storage | Hacked CPS Tube | -5/Factory | Scanalyzed Robot Schematics ------------------ None Fabricated ------------ Nothing Repaired ---------- Enh. Autogun | 53% | -7/Storage | Broken Studied --------- Hvy. Assault Rifle | -9/Materials | Hacked Autogun | -8/Materials | Hacked Lgt. Treads | -8/Materials | Hacked Imp. Treads | -8/Materials | Hacked Hpw. Shotgun | -8/Materials | Hacked Adv. Treads | -8/Materials | Hacked Med. Treads | -5/Factory | Hacked Alien Tech Used ----------------- None Achievements -------------- Yes I Work Here Challenges ------------ None Game ------ Seed ShadingThunderWartreads Manual? 0 Play Time 02:50:28 Cumulative 936.8 hours Start 2025.11.01 @ 10:29:59 End 2025.11.01 @ 17:21:28 Sessions 7 Manual Loads 0 Difficulty Rogue Special Mode None Game No. 295 Rogue 293 Adventurer 2 Explorer 0 Win Type - Total 64 Types 19/13/15/1/1/1/11/1/0/2 Lore% 96 Gallery% 94 Achievement% 78 Wizard Run 0 Options --------- Layout 0 ASCII 0 Keyboard 1 Movement Numpad Keybinds 0 Fullscreen 1 Font 24/Smallcaps Map View 76x50 Zoom Use 0% Tactical HUD 1 Map Filters NONE Filters NONE Steam 1 RUN: 4aaafec4-1599-419e-9425-cafb6a8cbc42